[Event "Kvibergspelen 2018"]
[Site "Prioritet Serneke Arena, Krutvagen 2, Gothenburg, Sweden"]
[Date "2018.04.22"]
[Round "8.3"]
[White "Lindberg, Bengt"]
[Black "Johansson, Gunnar"]
[Result "1-0"]
[TimeControl "15 minutes + 5 seconds per move from move one (Round 1 - 4) / 90 minutes + 30 seconds per move from move one (Round 5 - 8)"]
[WhiteTitle "IM"]
[WhiteFideId "1700359"]
[BlackFideId "1703501"]
[WhiteElo "2385"]
[BlackElo "2212"]

1. e4 {[%clk 01:30:58]} {[%emt 00:04:01]} c5 {[%clk 01:30:45]} {[%emt
00:00:16]} 2. Nf3 {[%clk 01:31:21]} {[%emt 00:00:06]} Nc6 {[%clk 01:31:07]}
{[%emt 00:00:09]} 3. d4 {[%clk 01:31:46]} {[%emt 00:00:05]} cxd4 {[%clk
01:31:33]} {[%emt 00:00:05]} 4. Nxd4 {[%clk 01:32:10]} {[%emt 00:00:05]} e6
{[%clk 01:31:58]} {[%emt 00:00:05]} 5. Nc3 {[%clk 01:32:32]} {[%emt 00:00:08]}
Qc7 {[%clk 01:32:21]} {[%emt 00:00:08]} 6. Be3 {[%clk 01:32:37]} {[%emt
00:00:24]} a6 {[%clk 01:32:45]} {[%emt 00:00:07]} 7. a3 {[%clk 01:32:46]}
{[%emt 00:00:20]} b5 {[%clk 01:31:03]} {[%emt 00:02:12]} 8. Bd3 {[%clk
01:27:22]} {[%emt 00:05:53]} Bb7 {[%clk 01:30:29]} {[%emt 00:01:05]} 9. O-O
{[%clk 01:27:34]} {[%emt 00:00:17]} Nf6 {[%clk 01:28:16]} {[%emt 00:02:44]} 10.
Kh1 {[%clk 01:18:41]} {[%emt 00:09:21]} Nxd4 {[%clk 01:23:59]} {[%emt
00:04:48]} 11. Bxd4 {[%clk 01:19:07]} {[%emt 00:00:04]} Bc5 {[%clk 01:24:15]}
{[%emt 00:00:15]} 12. Bxc5 {[%clk 01:19:09]} {[%emt 00:00:28]} Qxc5 {[%clk
01:24:38]} {[%emt 00:00:06]} 13. f4 {[%clk 01:18:14]} {[%emt 00:01:24]} d6
{[%clk 01:23:28]} {[%emt 00:01:41]} 14. Qe2 {[%clk 01:12:28]} {[%emt 00:06:15]}
Nd7 {[%clk 00:53:49]} {[%emt 00:30:09]} 15. Rae1 {[%clk 01:03:33]} {[%emt
00:09:25]} Qc7 {[%clk 00:51:35]} {[%emt 00:02:44]} 16. Rf3 {[%clk 00:46:35]}
{[%emt 00:17:27]} e5 {[%clk 00:44:30]} {[%emt 00:07:36]} 17. Ref1 {[%clk
00:40:40]} {[%emt 00:06:24]} exf4 {[%clk 00:41:54]} {[%emt 00:03:06]} 18. Rxf4
{[%clk 00:41:04]} {[%emt 00:00:06]} Ne5 {[%clk 00:42:11]} {[%emt 00:00:12]} 19.
Qh5 {[%clk 00:40:59]} {[%emt 00:00:34]} Qe7 {[%clk 00:39:31]} {[%emt 00:03:11]}
20. Ne2 {[%clk 00:36:44]} {[%emt 00:04:45]} h6 {[%clk 00:37:32]} {[%emt
00:02:30]} 21. Nd4 {[%clk 00:31:22]} {[%emt 00:05:52]} g6 {[%clk 00:37:21]}
{[%emt 00:00:41]} 22. Qe2 {[%clk 00:29:08]} {[%emt 00:02:44]} O-O {[%clk
00:37:06]} {[%emt 00:00:46]} 23. Qf2 {[%clk 00:25:50]} {[%emt 00:03:48]} Rac8
{[%clk 00:35:46]} {[%emt 00:01:50]} 24. h4 {[%clk 00:25:36]} {[%emt 00:00:43]}
h5 {[%clk 00:33:44]} {[%emt 00:02:33]} 25. Qg3 {[%clk 00:24:54]} {[%emt
00:01:11]} Kh7 {[%clk 00:33:06]} {[%emt 00:01:09]} 26. Be2 {[%clk 00:22:24]}
{[%emt 00:02:59]} Rc5 {[%clk 00:26:43]} {[%emt 00:06:53]} 27. b4 {[%clk
00:21:23]} {[%emt 00:01:31]} Rc7 {[%clk 00:23:33]} {[%emt 00:03:41]} 28. Bxh5
{[%clk 00:18:02]} {[%emt 00:03:51]} gxh5 {[%clk 00:19:50]} {[%emt 00:04:13]} 29.
Rf5 {[%clk 00:18:21]} {[%emt 00:00:11]} Ng6 {[%clk 00:20:06]} {[%emt 00:00:13]}
30. Rxh5 {[%clk 00:18:36]} {[%emt 00:00:15]} Kg8 {[%clk 00:20:30]} {[%emt
00:00:06]} 31. Nf5 {[%clk 00:16:53]} {[%emt 00:02:13]} Qxe4 {[%clk 00:20:44]}
{[%emt 00:00:16]} 32. Rg5 {[%clk 00:17:15]} {[%emt 00:00:08]} Kh8 {[%clk
00:13:25]} {[%emt 00:07:49]} 33. Nxd6 {[%clk 00:12:56]} {[%emt 00:04:49]} Qe2
{[%clk 00:09:36]} {[%emt 00:04:19]} 34. Rf2 {[%clk 00:12:18]} {[%emt 00:01:08]}
Qd1 {[%clk 00:08:55]} {[%emt 00:01:12]} 35. Kh2 {[%clk 00:12:36]} {[%emt
00:00:11]} Rd8 {[%clk 00:03:21]} {[%emt 00:06:05]} 36. Nxf7 {[%clk 00:10:59]}
{[%emt 00:02:07]} Rxf7 {[%clk 00:03:48]} {[%emt 00:00:03]} 37. Rxf7 {[%clk
00:11:21]} {[%emt 00:00:08]} Be4 {[%clk 00:03:45]} {[%emt 00:00:33]} 38. Rxg6
{[%clk 00:11:39]} {[%emt 00:00:12]} Bxg6 {[%clk 00:04:03]} {[%emt 00:00:12]} 39.
Qe5 {[%clk 00:11:59]} {[%emt 00:00:10]} Kg8 {[%clk 00:04:24]} {[%emt 00:00:09]}
40. Qg7+ {[%clk 00:12:20]} {[%emt 00:00:03]} 1-0

[Event "Kvibergspelen 2018"]
[Site "Prioritet Serneke Arena, Krutvagen 2, Gothenburg, Sweden"]
[Date "2018.04.22"]
[Round "8.4"]
[White "Arman, Deniz"]
[Black "Ernst, Thomas"]
[Result "1-0"]
[TimeControl "15 minutes + 5 seconds per move from move one (Round 1 - 4) / 90 minutes + 30 seconds per move from move one (Round 5 - 8)"]
[WhiteTitle "FM"]
[BlackTitle "GM"]
[WhiteFideId "6302106"]
[BlackFideId "1700065"]
[WhiteElo "2359"]
[BlackElo "2366"]

1. e4 {[%clk 01:30:37]} {[%emt 00:00:20]} e5 {[%clk 01:30:54]} {[%emt
00:00:09]} 2. Nf3 {[%clk 01:30:54]} {[%emt 00:00:13]} Nc6 {[%clk 01:31:20]}
{[%emt 00:00:05]} 3. Nc3 {[%clk 01:30:56]} {[%emt 00:00:28]} Nf6 {[%clk
01:31:43]} {[%emt 00:00:07]} 4. d4 {[%clk 01:31:22]} {[%emt 00:00:04]} exd4
{[%clk 01:32:05]} {[%emt 00:00:08]} 5. Nxd4 {[%clk 01:31:47]} {[%emt 00:00:04]}
Bb4 {[%clk 01:32:15]} {[%emt 00:00:19]} 6. Nxc6 {[%clk 01:32:11]} {[%emt
00:00:06]} bxc6 {[%clk 01:32:40]} {[%emt 00:00:05]} 7. Bd3 {[%clk 01:32:37]}
{[%emt 00:00:04]} d5 {[%clk 01:32:55]} {[%emt 00:00:15]} 8. exd5 {[%clk
01:33:00]} {[%emt 00:00:07]} cxd5 {[%clk 01:33:18]} {[%emt 00:00:07]} 9. O-O
{[%clk 01:33:25]} {[%emt 00:00:05]} O-O {[%clk 01:33:27]} {[%emt 00:00:21]} 10.
h3 {[%clk 01:33:51]} {[%emt 00:00:05]} Be7 {[%clk 01:31:11]} {[%emt 00:02:45]}
11. Qf3 {[%clk 01:30:36]} {[%emt 00:03:46]} c5 {[%clk 01:26:15]} {[%emt
00:05:25]} 12. Bg5 {[%clk 01:11:43]} {[%emt 00:19:24]} Be6 {[%clk 01:26:24]}
{[%emt 00:00:20]} 13. Rad1 {[%clk 01:11:26]} {[%emt 00:00:48]} Rb8 {[%clk
01:20:14]} {[%emt 00:06:39]} 14. b3 {[%clk 01:09:55]} {[%emt 00:02:02]} h6
{[%clk 01:14:04]} {[%emt 00:06:40]} 15. Bf4 {[%clk 01:05:17]} {[%emt 00:05:08]}
Bd6 {[%clk 01:12:29]} {[%emt 00:02:04]} 16. Nb5 {[%clk 00:38:09]} {[%emt
00:27:38]} Bxf4 {[%clk 01:12:49]} {[%emt 00:00:11]} 17. Qxf4 {[%clk 00:38:35]}
{[%emt 00:00:04]} Rb7 {[%clk 01:12:50]} {[%emt 00:00:28]} 18. c3 {[%clk
00:26:06]} {[%emt 00:12:59]} Rd7 {[%clk 01:10:23]} {[%emt 00:02:56]} 19. b4
{[%clk 00:21:47]} {[%emt 00:04:51]} a6 {[%clk 01:09:08]} {[%emt 00:01:45]} 20.
Na3 {[%clk 00:21:58]} {[%emt 00:00:18]} d4 {[%clk 01:09:27]} {[%emt 00:00:10]}
21. cxd4 {[%clk 00:16:21]} {[%emt 00:06:08]} Rxd4 {[%clk 01:09:27]} {[%emt
00:00:30]} 22. Qf3 {[%clk 00:14:08]} {[%emt 00:02:43]} Bd5 {[%clk 01:03:38]}
{[%emt 00:06:19]} 23. Qe2 {[%clk 00:12:01]} {[%emt 00:02:38]} Qa8 {[%clk
00:59:54]} {[%emt 00:04:13]} 24. f3 {[%clk 00:05:18]} {[%emt 00:07:12]} Rxb4
{[%clk 00:59:58]} {[%emt 00:00:27]} 25. Nc4 {[%clk 00:02:05]} {[%emt 00:03:43]}
Re8 {[%clk 00:53:31]} {[%emt 00:06:57]} 26. Qc2 {[%clk 00:02:18]} {[%emt
00:00:18]} Qb8 {[%clk 00:53:13]} {[%emt 00:00:47]} 27. a3 {[%clk 00:01:48]}
{[%emt 00:01:00]} Rb7 {[%clk 00:50:05]} {[%emt 00:03:37]} 28. Rb1 {[%clk
00:02:15]} {[%emt 00:00:04]} Rxb1 {[%clk 00:48:53]} {[%emt 00:01:42]} 29. Rxb1
{[%clk 00:02:41]} {[%emt 00:00:04]} Qf4 {[%clk 00:49:13]} {[%emt 00:00:09]} 30.
Bf1 {[%clk 00:03:05]} {[%emt 00:00:06]} Nh5 {[%clk 00:38:13]} {[%emt 00:11:30]}
31. Qd2 {[%clk 00:03:01]} {[%emt 00:00:34]} Qf5 {[%clk 00:37:29]} {[%emt
00:01:14]} 32. Bd3 {[%clk 00:00:45]} {[%emt 00:02:46]} Qf6 {[%clk 00:37:44]}
{[%emt 00:00:14]} 33. Qe3 {[%clk 00:01:02]} {[%emt 00:00:13]} Qd8 {[%clk
00:34:41]} {[%emt 00:03:33]} 34. Qxc5 {[%clk 00:00:55]} {[%emt 00:00:38]} Nf4
{[%clk 00:34:21]} {[%emt 00:00:50]} 35. Bf1 {[%clk 00:00:51]} {[%emt 00:00:34]}
Qg5 {[%clk 00:34:33]} {[%emt 00:00:18]} 36. Kh2 {[%clk 00:01:17]} {[%emt
00:00:04]} Re2 {[%clk 00:33:55]} {[%emt 00:01:08]} 37. Ne3 {[%clk 00:00:50]}
{[%emt 00:00:58]} Rd2 {[%clk 00:32:03]} {[%emt 00:02:22]} 38. Qc3 {[%clk
00:00:36]} {[%emt 00:00:44]} Ra2 {[%clk 00:31:32]} {[%emt 00:01:00]} 39. Rb8+
{[%clk 00:00:53]} {[%emt 00:00:14]} Kh7 {[%clk 00:31:30]} {[%emt 00:00:33]} 40.
Bd3 {[%clk 00:01:17]} {[%emt 00:00:06]} Nxd3 {[%clk 00:31:54]} {[%emt
00:00:05]} 41. Qxd3 {[%clk 00:01:43]} {[%emt 00:00:04]} g6 {[%clk 00:32:12]}
{[%emt 00:00:12]} 42. Qd4 {[%clk 00:01:47]} {[%emt 00:00:25]} f6 {[%clk
00:32:23]} {[%emt 00:00:19]} 43. Qa7 {[%clk 00:02:14]} {[%emt 00:00:04]} 1-0

[Event "Kvibergspelen 2018"]
[Site "Prioritet Serneke Arena, Krutvagen 2, Gothenburg, Sweden"]
[Date "2018.04.22"]
[Round "8.6"]
[White "Hector, Jonny"]
[Black "Fransson, Patrick"]
[Result "1-0"]
[TimeControl "15 minutes + 5 seconds per move from move one (Round 1 - 4) / 90 minutes + 30 seconds per move from move one (Round 5 - 8)"]
[WhiteTitle "GM"]
[WhiteFideId "1700090"]
[BlackFideId "1709305"]
[WhiteElo "2502"]
[BlackElo "2176"]

1. e4 {[%clk 01:30:54]} {[%emt 00:00:04]} c6 {[%clk 01:30:49]} {[%emt
00:00:13]} 2. Nc3 {[%clk 01:31:15]} {[%emt 00:00:08]} d5 {[%clk 01:31:09]}
{[%emt 00:00:10]} 3. Nf3 {[%clk 01:31:35]} {[%emt 00:00:09]} e6 {[%clk
01:30:05]} {[%emt 00:01:35]} 4. d4 {[%clk 01:31:39]} {[%emt 00:00:25]} Nf6
{[%clk 01:29:12]} {[%emt 00:01:25]} 5. Bd3 {[%clk 01:31:47]} {[%emt 00:00:22]}
Nxe4 {[%clk 01:26:23]} {[%emt 00:03:20]} 6. Nxe4 {[%clk 01:30:15]} {[%emt
00:02:01]} dxe4 {[%clk 01:26:49]} {[%emt 00:00:04]} 7. Bxe4 {[%clk 01:30:37]}
{[%emt 00:00:08]} Nd7 {[%clk 01:26:33]} {[%emt 00:00:47]} 8. Qe2 {[%clk
01:30:29]} {[%emt 00:00:37]} Nf6 {[%clk 01:24:26]} {[%emt 00:02:37]} 9. Bd3
{[%clk 01:30:51]} {[%emt 00:00:08]} Be7 {[%clk 01:23:17]} {[%emt 00:01:40]} 10.
Bd2 {[%clk 01:30:41]} {[%emt 00:00:39]} b6 {[%clk 01:16:51]} {[%emt 00:06:57]}
11. O-O-O {[%clk 01:30:12]} {[%emt 00:00:59]} Bb7 {[%clk 01:09:42]} {[%emt
00:07:39]} 12. Ne5 {[%clk 01:29:26]} {[%emt 00:01:14]} Qc7 {[%clk 01:02:40]}
{[%emt 00:07:33]} 13. g4 {[%clk 01:27:05]} {[%emt 00:02:50]} Bd6 {[%clk
00:58:41]} {[%emt 00:04:31]} 14. g5 {[%clk 01:22:47]} {[%emt 00:04:47]} Bxe5
{[%clk 00:55:34]} {[%emt 00:03:38]} 15. dxe5 {[%clk 01:22:22]} {[%emt
00:00:55]} Nd5 {[%clk 00:55:29]} {[%emt 00:00:35]} 16. h4 {[%clk 01:18:01]}
{[%emt 00:04:50]} O-O-O {[%clk 00:53:51]} {[%emt 00:02:08]} 17. h5 {[%clk
01:18:11]} {[%emt 00:00:19]} c5 {[%clk 00:51:35]} {[%emt 00:02:47]} 18. Rh4
{[%clk 01:18:05]} {[%emt 00:00:35]} Ne7 {[%clk 00:51:00]} {[%emt 00:01:06]} 19.
c3 {[%clk 01:10:21]} {[%emt 00:08:14]} Kb8 {[%clk 00:43:50]} {[%emt 00:07:41]}
20. Bf4 {[%clk 01:09:37]} {[%emt 00:01:14]} Bd5 {[%clk 00:40:22]} {[%emt
00:03:57]} 21. b3 {[%clk 01:08:02]} {[%emt 00:02:05]} Bc6 {[%clk 00:34:11]}
{[%emt 00:06:41]} 22. Kb2 {[%clk 01:02:02]} {[%emt 00:06:30]} Qb7 {[%clk
00:27:25]} {[%emt 00:07:17]} 23. Rh3 {[%clk 01:00:33]} {[%emt 00:01:59]} Rd7
{[%clk 00:25:12]} {[%emt 00:02:44]} 24. Bc2 {[%clk 01:00:06]} {[%emt 00:00:55]}
Ka8 {[%clk 00:16:11]} {[%emt 00:09:32]} 25. Rd6 {[%clk 00:58:32]} {[%emt
00:02:04]} Kb8 {[%clk 00:12:30]} {[%emt 00:04:12]} 26. Rhd3 {[%clk 00:57:04]}
{[%emt 00:01:57]} g6 {[%clk 00:10:10]} {[%emt 00:02:51]} 27. Rxd7 {[%clk
00:53:34]} {[%emt 00:04:00]} Bxd7 {[%clk 00:10:39]} {[%emt 00:00:02]} 28. Rh3
{[%clk 00:53:38]} {[%emt 00:00:24]} Rc8 {[%clk 00:10:22]} {[%emt 00:00:49]} 29.
hxg6 {[%clk 00:51:03]} {[%emt 00:03:05]} hxg6 {[%clk 00:10:47]} {[%emt
00:00:06]} 30. Rh7 {[%clk 00:50:56]} {[%emt 00:00:35]} Be8 {[%clk 00:10:34]}
{[%emt 00:00:44]} 31. Be4 {[%clk 00:48:24]} {[%emt 00:03:00]} Qd7 {[%clk
00:10:10]} {[%emt 00:00:55]} 32. Bc1 {[%clk 00:45:25]} {[%emt 00:03:29]} Rd8
{[%clk 00:09:24]} {[%emt 00:01:17]} 33. a4 {[%clk 00:42:34]} {[%emt 00:03:21]}
Qd1 {[%clk 00:07:30]} {[%emt 00:02:23]} 34. Qxd1 {[%clk 00:34:23]} {[%emt
00:08:42]} Rxd1 {[%clk 00:07:59]} {[%emt 00:00:02]} 35. a5 {[%clk 00:34:18]}
{[%emt 00:00:34]} Kc7 {[%clk 00:07:52]} {[%emt 00:00:37]} 36. Kc2 {[%clk
00:32:47]} {[%emt 00:02:00]} Rd8 {[%clk 00:05:43]} {[%emt 00:02:40]} 37. axb6+
{[%clk 00:31:02]} {[%emt 00:02:16]} axb6 {[%clk 00:06:12]} {[%emt 00:00:02]} 38.
Ba3 {[%clk 00:28:36]} {[%emt 00:02:54]} Rd7 {[%clk 00:05:34]} {[%emt 00:01:08]}
39. b4 {[%clk 00:27:28]} {[%emt 00:01:38]} Nc6 {[%clk 00:04:21]} {[%emt
00:01:43]} 40. bxc5 {[%clk 00:26:31]} {[%emt 00:01:27]} Nxe5 {[%clk 00:04:08]}
{[%emt 00:00:44]} 41. cxb6+ {[%clk 00:25:25]} {[%emt 00:01:35]} Kxb6 {[%clk
00:04:36]} {[%emt 00:00:03]} 42. Rh1 {[%clk 00:21:37]} {[%emt 00:04:16]} Nc4
{[%clk 00:02:41]} {[%emt 00:02:25]} 43. Rb1+ {[%clk 00:20:49]} {[%emt
00:01:17]} Kc7 {[%clk 00:02:46]} {[%emt 00:00:27]} 44. Bc1 {[%clk 00:20:58]}
{[%emt 00:00:20]} e5 {[%clk 00:01:30]} {[%emt 00:01:47]} 45. Ra1 {[%clk
00:19:01]} {[%emt 00:02:27]} Kd6 {[%clk 00:01:38]} {[%emt 00:00:22]} 46. Ra6+
{[%clk 00:17:04]} {[%emt 00:02:26]} Ke7 {[%clk 00:02:00]} {[%emt 00:00:09]} 47.
Rc6 {[%clk 00:17:09]} {[%emt 00:00:24]} Na5 {[%clk 00:01:07]} {[%emt 00:01:25]}
48. Rc5 {[%clk 00:15:15]} {[%emt 00:02:22]} Ra7 {[%clk 00:01:31]} {[%emt
00:00:06]} 49. Rxe5+ {[%clk 00:15:21]} {[%emt 00:00:24]} Kd8 {[%clk 00:01:31]}
{[%emt 00:00:31]} 50. Be3 {[%clk 00:14:39]} {[%emt 00:01:10]} Ba4+ {[%clk
00:01:17]} {[%emt 00:00:46]} 51. Kc1 {[%clk 00:13:45]} {[%emt 00:01:23]} Nc4
{[%clk 00:01:12]} {[%emt 00:00:36]} 52. Rd5+ {[%clk 00:12:50]} {[%emt
00:01:24]} Rd7 {[%clk 00:01:41]} {[%emt 00:00:02]} 53. Bd4 {[%clk 00:12:59]}
{[%emt 00:00:20]} Bc6 {[%clk 00:01:19]} {[%emt 00:00:53]} 54. Bf6+ {[%clk
00:12:36]} {[%emt 00:00:51]} Kc7 {[%clk 00:01:24]} {[%emt 00:00:27]} 55. Rc5
{[%clk 00:09:46]} 1-0

[Event "Kvibergspelen 2018"]
[Site "Prioritet Serneke Arena, Krutvagen 2, Gothenburg, Sweden"]
[Date "2018.04.22"]
[Round "8.7"]
[White "Crevatin, Leo"]
[Black "Storme, Isak"]
[Result "1/2-1/2"]
[TimeControl "15 minutes + 5 seconds per move from move one (Round 1 - 4) / 90 minutes + 30 seconds per move from move one (Round 5 - 8)"]
[BlackTitle "CM"]
[WhiteFideId "1726307"]
[BlackFideId "1728113"]
[WhiteElo "2157"]
[BlackElo "2323"]

1. d4 {[%clk 01:30:57]} {[%emt 00:00:02]} e6 {[%clk 01:30:29]} {[%emt
00:00:31]} 2. c4 {[%clk 01:31:23]} {[%emt 00:00:05]} f5 {[%clk 01:30:48]}
{[%emt 00:00:11]} 3. g3 {[%clk 01:31:47]} {[%emt 00:00:06]} Nf6 {[%clk
01:31:07]} {[%emt 00:00:10]} 4. Bg2 {[%clk 01:32:16]} c6 {[%clk 01:31:27]}
{[%emt 00:00:11]} 5. Nf3 {[%clk 01:32:08]} {[%emt 00:00:39]} d5 {[%clk
01:27:07]} {[%emt 00:04:49]} 6. O-O {[%clk 01:32:32]} {[%emt 00:00:05]} Bd6
{[%clk 01:27:09]} {[%emt 00:00:28]} 7. b3 {[%clk 01:32:22]} {[%emt 00:00:41]}
Qe7 {[%clk 01:27:22]} {[%emt 00:00:16]} 8. Nc3 {[%clk 01:30:46]} {[%emt
00:02:07]} O-O {[%clk 01:26:44]} {[%emt 00:01:08]} 9. Bb2 {[%clk 01:30:35]}
{[%emt 00:00:41]} b6 {[%clk 01:26:03]} {[%emt 00:01:10]} 10. Rc1 {[%clk
01:30:01]} {[%emt 00:01:05]} Bb7 {[%clk 01:16:09]} {[%emt 00:10:24]} 11. e3
{[%clk 01:28:53]} {[%emt 00:01:38]} Nbd7 {[%clk 01:16:15]} {[%emt 00:00:23]} 12.
Nd2 {[%clk 01:25:51]} {[%emt 00:03:32]} a6 {[%clk 01:06:05]} {[%emt 00:10:40]}
13. a4 {[%clk 01:23:42]} {[%emt 00:02:40]} Ne4 {[%clk 00:52:46]} {[%emt
00:13:49]} 14. Ncxe4 {[%clk 01:17:17]} {[%emt 00:06:55]} fxe4 {[%clk 00:52:00]}
{[%emt 00:01:16]} 15. f3 {[%clk 01:17:34]} {[%emt 00:00:12]} exf3 {[%clk
00:49:57]} {[%emt 00:02:34]} 16. Bxf3 {[%clk 01:17:21]} {[%emt 00:00:43]} c5
{[%clk 00:42:52]} {[%emt 00:07:35]} 17. Qe2 {[%clk 01:16:15]} {[%emt 00:01:36]}
Rae8 {[%clk 00:33:47]} {[%emt 00:09:35]} 18. Rce1 {[%clk 01:15:26]} {[%emt
00:01:19]} Qd8 {[%clk 00:23:30]} {[%emt 00:10:47]} 19. Qg2 {[%clk 01:14:48]}
{[%emt 00:01:08]} Qa8 {[%clk 00:21:28]} {[%emt 00:02:31]} 20. e4 {[%clk
01:09:56]} {[%emt 00:05:23]} cxd4 {[%clk 00:19:42]} {[%emt 00:02:15]} 21. exd5
{[%clk 01:08:45]} {[%emt 00:01:41]} Ne5 {[%clk 00:18:12]} {[%emt 00:02:00]} 22.
Be4 {[%clk 01:08:28]} {[%emt 00:00:47]} exd5 {[%clk 00:18:29]} {[%emt
00:00:13]} 23. cxd5 {[%clk 01:06:18]} {[%emt 00:02:40]} 1/2-1/2